bitfinex-derivatives/quotes_SOLF0:USTF0_20230904
["timestamp","ask_amount","ask_price","bid_price","bid_amount"]
[1693854531341,0.45454546,19.395,19.375,15.48]
[1693854531641,0.45454546,19.395,19.373,62.77782]
[1693854531842,0.45454546,19.395,19.375,15.48]
[1693854532040,0.45454546,19.395,19.373,62.77782]
[1693854532239,0.45454546,19.395,19.375,15.48]
[1693854532444,0.45454546,19.395,19.373,62.77782]
[1693854532744,0.45454546,19.395,19.375,15.48]
[1693854532941,0.45454546,19.395,19.373,62.77782]
[1693854533145,0.45454546,19.395,19.375,15.48]
[1693854533345,0.45454546,19.395,19.373,62.77782]
[1693854533639,0.45454546,19.395,19.375,15.48]
[1693854533841,0.45454546,19.395,19.373,78.25782]
[1693854534044,0.45454546,19.395,19.375,15.48]
[1693854534242,41.3780299,19.402,19.376,509.48051971]
[1693854534447,0.45454546,19.404,19.377,286.85473393]
[1693854534646,0.45454546,19.403,19.379,15.48]
[1693854534942,42.76372217,19.403,19.377,277.37475542]
[1693854535140,42.76372217,19.403,19.379,15.48]
[1693854535347,42.76372217,19.403,19.377,277.37475542]
[1693854535546,42.76372217,19.403,19.379,15.48]
[1693854535744,42.76372217,19.403,19.377,277.37475542]
[1693854535950,43.21826763,19.403,19.379,15.48]
[1693854536150,43.21826763,19.403,19.377,277.37475542]
[1693854536446,43.21826763,19.403,19.379,15.48]
[1693854536653,43.21826763,19.403,19.377,277.37475542]
[1693854537252,43.21826763,19.403,19.377,554.71624465]
[1693854539051,0.45454546,19.402,19.377,554.71624465]
[1693854539954,26.22507546,19.402,19.377,554.71624465]
[1693854544357,26.22507546,19.402,19.377,596.36245402]
[1693854544658,26.22507546,19.402,19.379,15.47]
[1693854544959,26.22507546,19.402,19.38,21.1843]
[1693854545551,26.22507546,19.402,19.381,277.342499]
[1693854548561,26.22507546,19.402,19.382,554.68506454]
[1693854548861,26.22507546,19.402,19.384,15.47]
[1693854549157,26.22507546,19.402,19.384,570.15506454]
[1693854549363,26.22507546,19.402,19.385,554.68506454]
[1693854549561,26.22507546,19.402,19.386,277.34253227]
[1693854549861,25.77186,19.401,19.387,297.47183227]
[1693854550064,25.77186,19.401,19.388,277.34253227]
[1693854566274,67.97392185,19.401,19.388,277.34253227]
[1693854570972,25.77186,19.401,19.388,277.34253227]
[1693854571178,0.45454546,19.402,19.388,277.34253227]
[1693854587094,0.45454546,19.402,19.388,318.58789309]
[1693854587290,0.45454546,19.402,19.39,15.47]
[1693854587495,0.45454546,19.402,19.391,277.34253227]
[1693854587691,0.45454546,19.402,19.392,277.34253227]
[1693854587897,0.45454546,19.402,19.393,277.34253227]
[1693854588097,0.45454546,19.402,19.394,277.34253227]
[1693854588298,0.45454546,19.402,19.395,277.34253227]
[1693854588493,0.45454546,19.402,19.396,277.34253227]
[1693854588698,0.45454546,19.402,19.397,277.34253227]
[1693854588901,0.45454546,19.402,19.387,20.1293]
[1693854589101,0.45454546,19.402,19.388,277.32667179]
[1693854602308,0.45454546,19.402,19.39,15.47]
[1693854602613,0.45454546,19.402,19.392,15.47]
[1693854602802,0.45454546,19.402,19.393,277.32667179]
[1693854603001,0.45454546,19.402,19.394,277.32667179]
[1693854603201,0.45454546,19.402,19.395,277.32667179]
[1693854603405,0.45454546,19.402,19.396,277.32667179]
[1693854603605,0.45454546,19.402,19.397,277.32667179]
[1693854603806,43.21826763,19.403,19.398,277.32667179]
[1693854604007,43.21826763,19.403,19.399,277.32667179]
[1693854604307,43.21826763,19.403,19.4,277.32667179]
[1693854604605,43.21826763,19.403,19.387,20.1293]
[1693854604806,43.21826763,19.403,19.388,277.32698242]
[1693854607212,42.76372217,19.403,19.388,277.32698242]
[1693854617416,42.76372217,19.403,19.387,20.1293]
[1693854617624,42.76372217,19.403,19.388,277.31704623]
[1693854621523,42.76372217,19.403,19.39,15.47]
[1693854621721,42.76372217,19.403,19.391,277.31704623]
[1693854621926,42.76372217,19.403,19.392,277.31704623]
[1693854622123,42.76372217,19.403,19.393,277.31704623]
[1693854622325,42.76372217,19.403,19.394,277.31704623]
[1693854622525,42.76372217,19.403,19.395,277.31704623]
[1693854622725,42.76372217,19.403,19.396,277.31704623]
[1693854623025,42.76372217,19.403,19.397,277.31704623]
[1693854623328,42.76372217,19.403,19.398,277.31704623]
[1693854623529,42.76372217,19.403,19.399,277.31704623]
[1693854623722,42.76372217,19.403,19.4,277.31704623]
[1693854623929,42.76372217,19.403,19.387,20.1293]
[1693854624229,42.76372217,19.403,19.388,277.31727808]
[1693854626825,42.76372217,19.403,19.39,15.47]
[1693854627023,42.76372217,19.403,19.391,277.31727808]
[1693854627225,42.76372217,19.403,19.392,277.31727808]
[1693854627430,42.76372217,19.403,19.393,277.31727808]
[1693854627630,42.76372217,19.403,19.394,277.31727808]
[1693854627834,42.76372217,19.403,19.395,277.31727808]
[1693854628032,42.76372217,19.403,19.396,277.31727808]
[1693854628233,42.76372217,19.403,19.397,277.31727808]
[1693854628433,42.76372217,19.403,19.398,277.31727808]
[1693854628633,42.76372217,19.403,19.399,277.31727808]
[1693854628833,42.76372217,19.403,19.4,277.31727808]
[1693854629035,42.76372217,19.403,19.401,277.31727808]
[1693854629232,42.76372217,19.403,19.387,20.1293]
[1693854629536,42.76372217,19.403,19.388,277.31759836]
[1693854633236,25.77053,19.402,19.388,277.31759836]
[1693854639842,0.45454546,19.401,19.388,277.31759836]
[1693854640241,25.77319,19.4,19.388,277.31759836]
[1693854640549,0.45454546,19.399,19.388,277.31759836]
[1693854640845,25.77585,19.398,19.388,277.31759836]
[1693854641045,0.45454546,19.397,19.388,277.31759836]
[1693854641636,25.77851,19.396,19.388,277.31759836]
[1693854641844,0.45454546,19.395,19.388,277.31759836]
[1693854642348,73.85502628,19.394,19.388,277.31759836]
[1693854643545,25.78249,19.393,19.389,277.31759836]
[1693854643745,25.78249,19.393,19.39,277.31759836]
[1693854643948,25.78249,19.393,19.379,15.47]
[1693854644154,25.78249,19.393,19.38,277.43470083]
[1693854647845,25.78249,19.393,19.381,277.43470083]
[1693854648052,25.78249,19.393,19.382,277.43470083]
[1693854648349,25.78249,19.393,19.383,277.43470083]
[1693854648550,25.78249,19.393,19.384,277.43470083]
[1693854648751,25.78249,19.393,19.385,277.43470083]
[1693854648951,25.78249,19.393,19.386,277.43470083]
[1693854649156,25.78249,19.393,19.387,277.43470083]
[1693854649351,25.78249,19.393,19.388,277.43470083]
[1693854649556,25.78249,19.393,19.389,277.43470083]
[1693854649757,25.78249,19.393,19.378,20.9696]
[1693854649952,25.78249,19.393,19.379,277.43307724]
[1693854657763,25.78249,19.393,19.379,292.90307724]
[1693854657964,25.78249,19.393,19.38,277.43307724]
[1693854666865,0.45454546,19.392,19.378,20.9696]
[1693854667069,0.45454546,19.392,19.379,277.52682968]
[1693854667467,0.45454546,19.392,19.373,15.48]
[1693854667675,0.45454546,19.392,19.374,277.52766039]
[1693854668467,0.45454546,19.392,19.375,277.52766039]
[1693854668668,0.45454546,19.392,19.376,277.52766039]
[1693854668870,0.45454546,19.392,19.377,277.52766039]
[1693854669070,0.45454546,19.392,19.378,277.52766039]
[1693854669272,0.45454546,19.392,19.372,21.484]
[1693854669573,25.78515,19.391,19.373,277.5271332]
[1693854669869,0.45454546,19.39,19.373,277.5271332]
[1693854670074,25.78781,19.389,19.373,277.5271332]
[1693854670373,0.45454546,19.388,19.373,277.5271332]
[1693854670570,25.79047,19.387,19.373,277.5271332]
[1693854670777,0.45454546,19.386,19.373,277.5271332]
[1693854670966,25.79313,19.385,19.373,277.5271332]
[1693854675374,25.79313,19.385,19.372,21.484]
[1693854675573,25.79313,19.385,19.373,277.52193989]
[1693854675768,25.79313,19.385,19.374,277.52193989]
[1693854675972,25.79313,19.385,19.375,277.52193989]
[1693854676172,25.79313,19.385,19.376,277.52193989]
[1693854676371,25.79313,19.385,19.377,277.52193989]
[1693854676572,25.79313,19.385,19.371,0.12573868]
[1693854677268,25.79313,19.385,19.371,277.6470334]
[1693854677576,25.79313,19.385,19.372,277.52129472]
[1693854677777,25.79313,19.385,19.373,277.52129472]
[1693854683078,68.08827963,19.385,19.373,277.52129472]
[1693854694587,68.08827963,19.385,19.373,293.00129472]
[1693854694783,68.08827963,19.385,19.375,15.48]
[1693854694980,25.79313,19.385,19.376,277.52129472]
[1693854695181,0.45454546,19.393,19.377,277.52129472]
[1693854695487,0.45454546,19.393,19.379,15.48]
[1693854695687,0.45454546,19.393,19.375,21.0473]
[1693854695884,0.45454546,19.393,19.376,277.47976464]
[1693854699292,41.9488695,19.393,19.376,277.47976464]
[1693854699492,0.45454546,19.392,19.376,277.47976464]
[1693854699693,0.45454546,19.393,19.376,277.47976464]
[1693854727308,2.35175637,19.393,19.376,277.47976464]
[1693854727508,0.45454546,19.392,19.376,277.47976464]
[1693854737616,25.78515,19.391,19.376,277.47976464]
[1693854737816,0.45454546,19.39,19.376,277.47976464]
[1693854738116,2.35202162,19.39,19.376,277.47976464]
[1693854738716,2.35202162,19.39,19.385,0.06282451]
[1693854738918,0.45454546,19.39,19.385,0.06282451]
[1693854739518,2.35201847,19.39,19.385,0.06282451]
[1693854741226,0.45454546,19.39,19.385,0.06282451]
[1693854746424,25.78515,19.391,19.385,0.06282451]
[1693854748225,67.79546991,19.391,19.385,0.06282451]
[1693854749818,1.89745864,19.39,19.385,0.06282451]
[1693854752624,1.89745864,19.39,19.376,277.47976464]
[1693854753627,1.89745864,19.39,19.385,0.06282451]
[1693854764937,25.78781,19.389,19.385,0.06282451]
[1693854765132,70.98853556,19.389,19.385,0.06282451]
[1693854766240,500.0,19.384,19.362,277.80638777]
[1693854766436,500.0,19.384,19.364,15.48]
[1693854766635,500.0,19.384,19.357,277.60366103]
[1693854766836,500.0,19.384,19.359,15.48]
[1693854767031,500.0,19.384,19.356,32.53558058]
[1693854767229,500.0,19.384,19.359,20.4013]
[1693854767434,0.45454546,19.387,19.356,32.53558058]
[1693854767639,500.0,19.384,19.357,9.48837589]
[1693854767941,500.0,19.384,19.357,29.88967589]
[1693854768130,500.0,19.384,19.356,73.95220421]
[1693854768330,500.0,19.384,19.357,9.48836462]
[1693854769940,0.45454546,19.385,19.357,9.48836462]
[1693854770142,525.79446,19.384,19.359,15.48]
[1693854770543,525.79446,19.384,19.356,32.53558058]
[1693854770840,525.79446,19.384,19.355,0.22727272]
[1693854770841,1.89811937,19.383,19.355,0.22727272]
[1693854771035,1.89811937,19.383,19.356,0.22727272]
[1693854771246,1.89811937,19.383,19.352,277.60366103]
[1693854771247,0.45454546,19.382,19.352,277.60366103]
[1693854771442,500.0,19.374,19.349,20.2928]
[1693854771842,500.0,19.374,19.346,0.12590083]
[1693854772345,0.45454546,19.38,19.346,0.12590083]
[1693854772545,500.0,19.374,19.346,0.12590083]
[1693854773137,0.45454546,19.378,19.346,0.12590083]
[1693854773438,0.45454546,19.378,19.346,41.27819818]
[1693854773439,500.0,19.375,19.346,41.27819818]
[1693854773639,45.05130485,19.374,19.347,35.33667971]
[1693854773842,45.05130485,19.374,19.348,9.72015243]
[1693854774051,45.05130485,19.374,19.349,0.22727272]
[1693854774239,45.05130485,19.374,19.349,26.06839272]
[1693854774437,45.05130485,19.374,19.35,9.72015243]
[1693854774647,45.05130485,19.374,19.351,0.22727272]
[1693854785556,20.2071,19.373,19.351,9.72015243]
[1693854785756,20.2071,19.373,19.348,0.22727272]
[1693854785954,0.45454546,19.372,19.348,9.49198946]
[1693854786155,0.45454546,19.372,19.348,287.20564345]
[1693854786363,0.45454546,19.372,19.349,299.73934045]
[1693854786659,0.45454546,19.371,19.35,277.72944045]
[1693854786960,0.45454546,19.37,19.35,277.72944045]
[1693854787159,587.37361888,19.374,19.35,277.72944045]
[1693854787160,0.45454546,19.369,19.35,277.72944045]
[1693854787362,0.45454546,19.373,19.35,277.72944045]
[1693854789765,26.26365546,19.373,19.35,277.72944045]
[1693854789967,0.45454546,19.372,19.35,277.72944045]
[1693854791867,0.45454546,19.372,19.349,22.0099]
[1693854792168,0.45454546,19.372,19.35,277.73129657]
[1693854792363,0.45454546,19.372,19.351,277.73129657]
[1693854795457,26.26632546,19.371,19.351,277.73129657]
[1693854795662,26.26765546,19.37,19.351,277.73129657]
[1693854795863,26.26898546,19.369,19.351,277.73129657]
[1693854796159,25.81577,19.368,19.351,277.73129657]
[1693854796358,500.0,19.365,19.346,20.3547]
[1693854796563,500.0,19.365,19.338,15.49]
[1693854796564,0.45454546,19.364,19.347,277.86727481]
[1693854796765,0.45454546,19.364,19.348,277.86727481]
[1693854796957,0.45454546,19.364,19.342,15.49]
[1693854797165,0.45454546,19.364,19.343,277.89571128]
[1693854797567,0.45454546,19.363,19.343,277.89571128]
[1693854797765,0.45454546,19.362,19.343,277.89571128]
[1693854797966,500.45454546,19.365,19.343,277.89571128]
[1693854798167,0.45454546,19.364,19.343,277.89571128]
[1693854801072,0.45454546,19.365,19.343,277.89571128]
[1693854801469,26.27431546,19.365,19.343,277.89571128]
[1693854801669,0.45454546,19.364,19.343,277.89571128]
[1693854802768,41.38572905,19.366,19.343,277.89571128]
[1693854802974,0.45454546,19.372,19.343,277.89571128]
[1693854803173,2.35405804,19.372,19.343,277.89571128]
[1693854803370,0.45454546,19.371,19.343,277.89571128]
[1693854803576,2.35405804,19.371,19.343,277.89571128]
[1693854803769,2.35405804,19.37,19.343,277.89571128]
[1693854804073,0.45454546,19.369,19.343,277.89571128]
[1693854804268,2.35405353,19.373,19.343,277.89571128]
[1693854804465,0.45454546,19.372,19.343,277.89571128]
[1693854804775,2.35405353,19.372,19.343,277.89571128]
[1693854804971,0.45454546,19.371,19.343,277.89571128]
[1693854813186,0.45454546,19.371,19.343,319.23042201]
[1693854813486,0.45454546,19.371,19.344,277.89571128]
[1693854813988,0.45454546,19.371,19.345,277.89571128]
[1693854814185,0.45454546,19.371,19.346,277.89571128]
[1693854814384,0.45454546,19.371,19.347,277.89571128]
[1693854814579,0.45454546,19.371,19.348,277.89571128]
[1693854814783,0.45454546,19.371,19.342,15.49]
[1693854814985,0.45454546,19.371,19.343,277.86455212]
[1693854816780,41.35950412,19.371,19.343,277.86455212]
[1693854816978,2.35405353,19.37,19.343,277.86455212]
[1693854817189,0.45454546,19.369,19.343,277.86455212]
[1693854817583,2.3540039,19.372,19.343,277.86455212]
[1693854817781,0.45454546,19.371,19.343,277.86455212]
[1693854821296,25.80911,19.373,19.346,500.0]
[1693854821499,86.96138236,19.374,19.347,287.58888441]
[1693854821693,86.96138236,19.374,19.348,287.58888441]
[1693854821891,86.96138236,19.374,19.349,287.58888441]
[1693854822093,86.96138236,19.374,19.35,277.86455212]
[1693854822290,86.96138236,19.374,19.351,277.86455212]
[1693854822490,86.96138236,19.374,19.352,277.86455212]
[1693854822798,86.96138236,19.374,19.353,277.86455212]
[1693854823000,86.96138236,19.374,19.354,277.86455212]
[1693854823197,86.96138236,19.374,19.355,277.86455212]
[1693854823401,86.96138236,19.374,19.355,298.50555212]
[1693854823602,86.96138236,19.374,19.356,277.86455212]
[1693854824101,86.96138236,19.374,19.355,20.641]
[1693854824302,86.96138236,19.374,19.354,35.01877941]
[1693854824493,86.96138236,19.374,19.355,277.75657163]
[1693854824698,86.96138236,19.374,19.356,20.641]
[1693854825305,86.96138236,19.374,19.354,35.01877941]
[1693854825499,86.96138236,19.374,19.355,277.75620959]
[1693854826101,86.96138236,19.374,19.356,21.7448]
[1693854828107,0.45454546,19.38,19.357,277.75293619]
[1693854828605,0.45454546,19.379,19.357,277.75293619]
[1693854828807,0.45454546,19.378,19.357,277.75293619]
[1693854829106,0.45454546,19.377,19.357,277.75293619]
[1693854829409,2.35267459,19.381,19.376,0.06285375]
[1693854829598,0.45454546,19.38,19.376,0.06285375]
[1693854832411,341.04466176,19.382,19.376,0.06285375]
[1693854832412,41.27272726,19.382,19.376,0.06285375]
[1693854832607,45.20072556,19.389,19.376,0.06285375]
[1693854832807,1.89791801,19.388,19.376,0.06285375]
[1693854842714,1.89791801,19.388,19.366,15.48]
[1693854842914,1.89791801,19.388,19.367,278.09628779]
[1693854843117,1.89791801,19.388,19.369,15.48]
[1693854843710,1.89791801,19.388,19.379,0.06284402]
[1693854865420,20.6704,19.387,19.379,0.06284402]
[1693854865624,1.89791801,19.386,19.379,0.06284402]
[1693854873535,1.89791801,19.386,19.37,21.48154546]
[1693854873835,1.89791801,19.386,19.37,21.027]
[1693854874034,1.89791801,19.386,19.37,0.45454546]
[1693854874233,1.89791801,19.386,19.369,36.507]
[1693854874426,1.89791801,19.385,19.37,0.45454546]
[1693854874734,85.56830428,19.389,19.379,0.06284402]
[1693854875036,1.89794481,19.388,19.379,0.06284402]
[1693854875435,22.0567,19.387,19.379,0.06284402]
[1693854875636,1.89794481,19.386,19.379,0.06284402]
[1693854889340,43.95780032,19.386,19.379,0.06284402]
[1693854889537,1.89794481,19.385,19.379,0.06284402]
[1693854904353,43.48721209,19.385,19.379,0.06284402]
[1693854904552,1.89794481,19.384,19.379,0.06284402]
[1693854904754,31.49736702,19.386,19.379,0.06284402]
[1693854904955,1.89797985,19.385,19.379,0.06284402]
[1693854909857,42.04747161,19.386,19.379,0.06284402]
[1693854910062,22.0567,19.387,19.379,0.06284402]
[1693854910263,1.89784893,19.386,19.379,0.06284402]
[1693854911064,1.89784893,19.386,19.379,15.54284402]
[1693854911361,1.89784893,19.386,19.379,0.06284402]
[1693854911858,40.36757872,19.389,19.379,0.06284402]
[1693854912166,1.89787669,19.388,19.379,0.06284402]
[1693854912460,21.1962,19.393,19.379,0.06284402]
[1693854912461,1.89787669,19.387,19.379,0.06284402]
[1693854912652,1.89787669,19.386,19.379,0.06284402]
[1693854912853,21.1962,19.393,19.379,15.54284402]
[1693854913054,21.1962,19.393,19.379,0.06284402]
[1693854913259,1.89787367,19.392,19.379,0.06284402]
[1693854914462,1.89787367,19.392,19.379,15.54284402]
[1693854914665,1.89787367,19.392,19.379,0.06284402]
[1693854915967,1.89787367,19.392,19.379,15.54284402]
[1693854916266,1.89787367,19.392,19.379,0.06284402]
[1693854917469,1.89787367,19.392,19.377,277.63203956]
[1693854917671,1.89787367,19.392,19.379,15.48]
[1693854917969,22.11347367,19.391,19.37,0.45454546]
[1693854918164,1.89787367,19.39,19.37,278.08815873]
[1693854918471,1.89787367,19.389,19.371,278.08815873]
[1693854918664,1.89787367,19.389,19.379,0.06284402]
[1693854918865,1.89787367,19.388,19.379,0.06284402]
[1693854919065,1.89787367,19.387,19.379,0.06284402]
[1693854919266,1.89787367,19.386,19.379,0.06284402]
[1693854919562,1.89787367,19.385,19.379,15.54284402]
[1693854919762,356.13562964,19.394,19.379,0.06284402]
[1693854919962,1.8978794,19.393,19.379,0.06284402]
[1693854920866,1.8978794,19.393,19.379,15.54284402]
[1693854921069,1.8978794,19.393,19.379,0.06284402]
[1693854922172,1.8978794,19.393,19.379,15.54284402]
[1693854922365,1.8978794,19.393,19.379,0.06284402]
[1693854923370,1.8978794,19.393,19.379,15.54284402]
[1693854923571,1.8978794,19.393,19.379,0.06284402]
[1693854924576,1.8978794,19.393,19.379,15.54284402]
[1693854924776,1.8978794,19.393,19.379,0.06284402]
[1693854925872,1.8978794,19.393,19.379,15.54284402]
[1693854926077,1.8978794,19.393,19.379,0.06284402]
[1693854927276,1.8978794,19.393,19.379,15.54284402]
[1693854927581,1.8978794,19.393,19.379,0.06284402]
[1693854929085,1.8978794,19.393,19.379,15.54284402]
[1693854929288,1.8978794,19.393,19.379,0.06284402]
[1693854930486,1.8978794,19.393,19.379,15.54284402]
[1693854930787,1.8978794,19.393,19.379,0.06284402]
[1693854931778,25.78382,19.392,19.379,0.06284402]
[1693854931978,1.8978794,19.391,19.379,15.54284402]
[1693854932178,1.8978794,19.391,19.379,0.06284402]
[1693854933590,1.8978794,19.391,19.379,15.54284402]
[1693854933786,1.8978794,19.391,19.379,0.06284402]
[1693854935090,1.8978794,19.391,19.379,15.54284402]
[1693854935288,1.8978794,19.391,19.379,0.06284402]
[1693854936690,1.8978794,19.391,19.379,15.54284402]
[1693854936893,1.8978794,19.391,19.379,0.06284402]
[1693854938291,1.8978794,19.391,19.379,15.54284402]
[1693854938487,1.8978794,19.391,19.379,0.06284402]
[1693854939788,25.78648,19.39,19.379,0.06284402]
[1693854939988,1.8978794,19.389,19.379,0.06284402]
[1693854940296,25.78914,19.388,19.379,0.06284402]
[1693854940592,1.8978794,19.387,19.379,0.06284402]
[1693854948002,1.8978794,19.387,19.375,15.48]
[1693854948202,1.8978794,19.387,19.376,277.64075319]
[1693854948404,1.8978794,19.387,19.377,277.64075319]
[1693854948703,1.8978794,19.387,19.378,277.64075319]
[1693854948902,20.6013,19.386,19.371,0.45454546]
[1693854949102,1.8978794,19.385,19.379,0.06284401]
[1693854949299,501.8978794,19.385,19.379,0.06284401]
[1693854949603,27.6923394,19.384,19.374,277.64088071]
[1693854949804,27.6936794,19.383,19.375,277.64088071]
[1693854950107,1.8978794,19.382,19.364,15.93454546]
[1693854950307,1.8978794,19.382,19.369,15.48]
[1693854950505,1.8978794,19.382,19.37,277.65826519]
[1693854950808,1.8978794,19.382,19.371,277.65826519]
[1693854951109,1.8978794,19.382,19.372,277.65826519]
[1693854951310,1.8978794,19.382,19.373,277.65826519]
[1693854951504,1.8978794,19.382,19.374,277.65826519]
[1693854951699,1.8978794,19.382,19.375,277.65826519]
[1693854951897,1.8978794,19.382,19.364,15.93454546]
[1693854952103,1.8978794,19.382,19.369,15.48]
[1693854952303,1.8978794,19.382,19.37,277.65790649]
[1693854952607,1.8978794,19.382,19.371,277.65790649]
[1693854952907,1.8978794,19.382,19.372,277.65790649]
[1693854953108,1.8978794,19.382,19.373,277.65790649]
[1693854953308,1.8978794,19.382,19.374,277.65790649]
[1693854953609,1.8978794,19.382,19.366,15.48]
[1693854953902,1.8978794,19.382,19.363,21.261]
[1693854953903,1.8978794,19.382,19.369,15.48]
[1693854954098,1.8978794,19.382,19.37,277.65834174]
[1693854954299,1.8978794,19.382,19.371,277.65834174]
[1693854954505,1.8978794,19.382,19.372,277.65834174]
[1693854954705,1.8978794,19.382,19.373,277.65834174]
[1693854954902,1.8978794,19.382,19.374,277.65834174]
[1693854955107,1.8978794,19.382,19.366,15.48]
[1693854955312,1.8978794,19.382,19.369,15.48]
[1693854955509,1.8978794,19.382,19.37,277.65976385]
[1693854955711,1.8978794,19.382,19.371,277.65976385]
[1693854955904,1.8978794,19.382,19.372,277.65976385]
[1693854956110,1.8978794,19.382,19.373,277.65976385]
[1693854956312,1.8978794,19.382,19.374,277.65976385]
[1693854956612,1.8978794,19.382,19.366,15.48]
[1693854956810,1.8978794,19.382,19.369,15.48]
[1693854957010,1.8978794,19.382,19.37,277.65879067]
[1693854957311,1.8978794,19.382,19.371,277.65879067]
[1693854957512,1.8978794,19.382,19.372,277.65879067]
[1693854957712,1.8978794,19.382,19.373,277.65879067]
[1693854957913,1.8978794,19.382,19.374,277.65879067]
[1693854958110,1.8978794,19.382,19.366,15.48]
[1693854958303,1.8978794,19.382,19.369,15.48]
[1693854958508,1.8978794,19.382,19.37,277.65895667]
[1693854958811,1.8978794,19.382,19.371,277.65895667]
[1693854959011,1.8978794,19.382,19.372,277.65895667]
[1693854959210,1.8978794,19.382,19.373,277.65895667]
[1693854959407,1.8978794,19.382,19.366,15.48]
[1693854959408,1.8978794,19.382,19.374,277.65895667]
[1693854959609,1.8978794,19.382,19.366,15.48]
[1693854959807,1.8978794,19.382,19.369,15.48]
[1693854960012,1.8978794,19.382,19.37,277.65861927]
[1693854960213,1.8978794,19.382,19.371,277.65861927]
[1693854960416,1.8978794,19.382,19.372,277.65861927]
[1693854960609,1.8978794,19.382,19.363,21.261]
[1693854960610,1.8978794,19.382,19.373,277.65861927]
[1693854960811,1.8978794,19.382,19.374,277.65861927]
[1693854961114,1.8978794,19.382,19.364,15.93454546]
[1693854961115,1.8978794,19.382,19.366,15.48]
[1693854961315,1.8978794,19.382,19.367,277.65921571]
[1693854961614,21.2178,19.381,19.369,15.48]
[1693854961816,25.7958,19.383,19.37,277.65921571]
[1693854962012,1.89806744,19.382,19.371,277.65921571]
[1693854962204,22.54796744,19.382,19.372,277.65921571]
[1693854962505,25.7958,19.383,19.373,277.65921571]
[1693854962703,20.6499,19.381,19.364,15.93454546]
[1693854962906,20.6499,19.381,19.366,15.48]
[1693854963110,25.7958,19.383,19.367,277.66008147]
[1693854963306,1.8980685,19.382,19.369,15.48]
[1693854963510,22.5479685,19.382,19.37,277.66008147]
[1693854963710,25.7958,19.383,19.371,277.66008147]
[1693854963911,20.6499,19.381,19.372,277.66008147]
[1693854964211,20.6499,19.381,19.373,277.66008147]
[1693854964517,25.7958,19.383,19.379,0.06284401]
[1693854964814,20.6499,19.38,19.379,0.06284401]
[1693854965015,25.7958,19.383,19.379,0.06284401]
[1693854965217,1.89806984,19.382,19.379,0.06284401]
[1693854977023,66.51894048,19.383,19.379,0.06284401]
[1693854980020,48.24301418,19.386,19.379,0.06284401]
[1693854980226,41.67595458,19.387,19.379,0.06284401]
[1693854980523,20.7693,19.395,19.379,0.06284401]
[1693854980726,1.89724014,19.394,19.379,0.06284401]
[1693854980919,1.89724014,19.394,19.38,0.45454546]
[1693854981121,26.86567416,19.396,19.38,310.15108425]
[1693854981331,1.89687751,19.395,19.381,278.09568777]
[1693854981531,1.89687751,19.395,19.382,278.09568777]
[1693854981733,69.0309634,19.396,19.384,15.48]
[1693854981933,1.89690105,19.395,19.386,15.48]
[1693854982128,1.89690105,19.395,19.387,0.45454546]
[1693854982329,1.89690105,19.395,19.388,0.45454546]
[1693854982632,1.89690105,19.395,19.382,0.45454546]
[1693854985434,1.89690105,19.395,19.388,15.48]
[1693854985635,1.89690105,19.395,19.382,0.45454546]
[1693854985837,1.89690105,19.395,19.384,15.48]
[1693854986038,1.89690105,19.395,19.386,15.48]
[1693854986236,1.89690105,19.395,19.39,15.48]
[1693854986436,1.89690105,19.395,19.381,0.45454546]
[1693854986737,1.89690105,19.395,19.381,277.94277198]
[1693854986938,1.89690105,19.395,19.382,277.94277198]
[1693854987138,1.89690105,19.395,19.384,15.48]
[1693854987334,1.89690105,19.395,19.386,15.48]
[1693854987539,1.89690105,19.395,19.387,0.45454546]
[1693854987741,1.89690105,19.395,19.381,277.94402698]
[1693854988038,1.89690105,19.395,19.382,0.45454546]
[1693854993644,69.0309634,19.396,19.382,0.45454546]
[1693854994344,69.0309634,19.396,19.384,15.47]
[1693854994540,69.0309634,19.396,19.386,15.47]
[1693854994745,69.0309634,19.396,19.384,15.92454546]
[1693854995046,69.0309634,19.396,19.386,15.47]
[1693854995246,69.0309634,19.396,19.384,15.92454546]
[1693854995441,69.0309634,19.396,19.386,15.47]
[1693854995643,69.0309634,19.396,19.386,0.45454546]
[1693854995843,69.0309634,19.396,19.386,15.47]
[1693854996044,69.0309634,19.396,19.384,15.92454546]
[1693854996346,69.0309634,19.396,19.386,15.47]
[1693854996542,69.0309634,19.396,19.386,0.45454546]
[1693854996746,69.0309634,19.396,19.386,15.47]
[1693854996946,69.0309634,19.396,19.386,0.45454546]
[1693854997147,69.0309634,19.396,19.386,15.47]
[1693854997439,69.0309634,19.396,19.384,15.92454546]
[1693854997641,69.0309634,19.396,19.386,15.47]
[1693854997837,69.0309634,19.396,19.384,15.92454546]
[1693854998042,69.0309634,19.396,19.386,15.47]